fUSD/lending_fUSD_20240222
["ID","MTS","AMOUNT","RATE_DAILY","PERIOD"]
[314851090,1708593069240,-565.96,0.0003589,2]
[314851091,1708593069250,-500.0,0.0003589,2]
[314851092,1708593069260,-500.0,0.0003589,2]
[314851093,1708593069269,-9037.05,0.0003589,2]
[314851094,1708593069279,-8077.89,0.0003589,2]
[314851095,1708593069288,-500.0,0.0003589,2]
[314851096,1708593069297,-1247.36,0.0003589,2]
[314851097,1708593069307,-500.0,0.0003589,2]
[314851098,1708593069316,-500.0,0.0003589,2]
[314851099,1708593069326,-530.46595126,0.0003589,10]
[314851100,1708593069335,-500.0,0.0003589,2]
[314851101,1708593069344,-509.69925623,0.0003589,2]
[314851102,1708593069354,-500.0,0.0003589,2]
[314851103,1708593069363,-500.0,0.0003589,2]
[314851104,1708593069373,-532.53719971,0.0003589,2]
[314851105,1708593069382,-500.0,0.0003589,2]
[314851106,1708593069391,-1047.4,0.0003589,2]
[314851107,1708593069401,-500.0,0.0003589,2]
[314851108,1708593069411,-3625.17,0.0003589,2]
[314851109,1708593069421,-500.0,0.0003589,2]
[314851110,1708593069430,-1940.9,0.0003589,2]
[314851111,1708593069439,-500.0,0.0003589,2]
[314851112,1708593069449,-278.31,0.0003589,2]
[314851113,1708593069458,-500.0,0.0003589,2]
[314851114,1708593069467,-500.0,0.0003589,2]
[314851115,1708593069478,-1466.81,0.0003589,2]
[314851116,1708593069487,-1262.03,0.0003589,2]
[314851117,1708593069496,-500.0,0.0003589,2]
[314851118,1708593069505,-500.0,0.0003589,2]
[314851119,1708593069514,-500.0,0.0003589,2]
[314851120,1708593069524,-500.0,0.0003589,2]
[314851121,1708593069533,-515.12176087,0.0003589,2]
[314851122,1708593069543,-500.0,0.0003589,2]
[314851123,1708593069552,-500.0,0.0003589,2]
[314851124,1708593069561,-500.0,0.0003589,2]
[314851125,1708593069571,-1470.4,0.0003589,2]
[314851126,1708593069580,-500.0,0.0003589,2]
[314851127,1708593069590,-500.0,0.0003589,2]
[314851128,1708593069599,-827.58,0.0003589,2]
[314851129,1708593069609,-500.0,0.0003589,2]
[314851130,1708593069619,-1252.05,0.0003589,2]
[314851131,1708593069628,-883.51,0.0003589,2]
[314851132,1708593069638,-500.0,0.0003589,2]
[314851133,1708593069647,-1048.09,0.0003589,2]
[314851134,1708593069656,-500.0,0.0003589,2]
[314851135,1708593069665,-500.0,0.0003589,2]
[314851136,1708593069674,-500.0,0.0003589,2]
[314851137,1708593069683,-500.0,0.0003589,2]
[314851138,1708593069694,-500.0,0.0003589,2]
[314851139,1708593069703,-500.0,0.0003589,2]
[314851140,1708593069712,-500.0,0.0003589,2]
[314851141,1708593069722,-500.0,0.0003589,2]
[314851142,1708593069732,-890.25,0.0003589,2]
[314851143,1708593069742,-500.0,0.0003589,2]
[314851144,1708593069751,-5119.03,0.0003589,2]
[314851145,1708593069761,-1033.43,0.0003589,2]
[314851146,1708593069771,-1205.03,0.0003589,2]
[314851147,1708593069781,-1280.74,0.0003589,2]
[314851148,1708593069790,-500.0,0.0003589,2]
[314851149,1708593069800,-500.0,0.0003589,2]
[314851150,1708593069809,-645.33,0.0003589,2]
[314851151,1708593069819,-500.0,0.0003589,2]
[314851152,1708593069828,-500.0,0.0003589,2]
[314851153,1708593069838,-500.0,0.0003589,2]
[314851154,1708593069848,-500.0,0.0003589,2]
[314851155,1708593069857,-500.0,0.0003589,2]
[314851156,1708593069867,-23261.82,0.0003589,2]
[314851157,1708593069876,-3423.77,0.0003589,2]
[314851158,1708593069886,-1073.85,0.0003589,2]
[314851159,1708593069895,-500.0,0.0003589,2]
[314851160,1708593069904,-500.0,0.0003589,2]
[314851161,1708593069914,-500.0,0.0003589,2]
[314851162,1708593069923,-549.67211899,0.0003589,2]
[314851163,1708593069932,-2969.92,0.0003589,2]
[314851164,1708593069941,-1315.73,0.0003589,2]
[314851165,1708593069951,-2026.21,0.0003589,2]
[314851166,1708593069961,-502.8188103,0.0003589,2]
[314851167,1708593069970,-500.0,0.0003589,2]
[314851168,1708593069980,-1883.12,0.0003589,2]
[314851169,1708593069989,-500.0,0.0003589,2]
[314851170,1708593069999,-500.0,0.0003589,2]
[314851171,1708593070008,-500.0,0.0003589,2]
[314851172,1708593070018,-500.0,0.0003589,2]
[314851173,1708593070028,-500.0,0.0003589,2]
[314851174,1708593070038,-500.0,0.0003589,2]
[314851175,1708593070047,-500.0,0.0003589,2]
[314851176,1708593070057,-500.0,0.0003589,2]
[314851177,1708593070066,-768.57,0.0003589,2]
[314851178,1708593070075,-500.0,0.0003589,2]
[314851179,1708593070088,-500.0,0.0003589,2]
[314851180,1708593070097,-500.0,0.0003589,2]
[314851181,1708593070106,-517.92148983,0.0003589,2]
[314851182,1708593070115,-832.98,0.0003589,2]
[314851183,1708593070125,-500.0,0.0003589,2]
[314851184,1708593070135,-753.76,0.0003589,2]
[314851185,1708593070144,-500.0,0.0003589,2]
[314851186,1708593070153,-500.0,0.0003589,2]
[314851187,1708593070164,-1576.61,0.0003589,2]
[314851188,1708593070174,-500.0,0.0003589,2]
[314851189,1708593070182,-500.0,0.0003589,2]
[314851190,1708593070192,-500.0,0.0003589,2]
[314851191,1708593070201,-15895.95,0.0003589,2]
[314851192,1708593070210,-500.0,0.0003589,2]
[314851193,1708593070219,-2990.47,0.0003589,2]
[314851194,1708593070228,-500.0,0.0003589,2]
[314851195,1708593070237,-500.0,0.0003589,2]
[314851196,1708593070246,-500.0,0.0003589,2]
[314851197,1708593070256,-516.74766137,0.0003589,2]
[314851198,1708593070265,-500.0,0.0003589,2]
[314851199,1708593070274,-500.0,0.0003589,2]
[314851200,1708593070283,-8209.64,0.0003589,2]
[314851201,1708593070293,-500.0,0.0003589,2]
[314851202,1708593070302,-500.0,0.0003589,2]
[314851203,1708593070311,-619.52,0.0003589,2]
[314851204,1708593070320,-833.63,0.0003589,2]
[314851205,1708593070330,-673.04,0.0003589,2]
[314851206,1708593070339,-500.0,0.0003589,2]
[314851207,1708593070348,-1544.49,0.0003589,2]
[314851208,1708593070357,-1507.26,0.0003589,2]
[314851209,1708593070366,-1044.18,0.0003589,2]
[314851210,1708593070375,-500.0,0.0003589,2]
[314851211,1708593070384,-11426.41,0.0003589,2]
[314851212,1708593070393,-500.0,0.0003589,2]
[314851213,1708593070402,-2510.74,0.0003589,2]
[314851214,1708593070411,-517.88911927,0.0003589,2]
[314851215,1708593070420,-500.0,0.0003589,2]
[314851216,1708593070430,-500.0,0.0003589,2]
[314851217,1708593070439,-500.0,0.0003589,2]
[314851218,1708593070449,-500.0,0.0003589,2]
[314851219,1708593070458,-743.43,0.0003589,2]
[314851220,1708593070467,-500.0,0.0003589,2]
[314851221,1708593070476,-500.0,0.0003589,2]
[314851222,1708593070487,-747.28,0.0003589,2]
[314851223,1708593070499,-799.31,0.0003589,2]
[314851224,1708593070508,-500.0,0.0003589,2]
[314851225,1708593070517,-500.0,0.0003589,2]
[314851226,1708593070528,-991.75,0.0003589,2]
[314851227,1708593070537,-1646.08,0.0003589,2]
[314851228,1708593070545,-500.0,0.0003589,2]
[314851229,1708593070554,-1234.25,0.0003589,2]
[314851230,1708593070563,-2949.58,0.0003589,2]
[314851231,1708593070573,-992.72,0.0003589,2]
[314851232,1708593070582,-509.90147591,0.0003589,2]
[314851233,1708593070592,-1181.09,0.0003589,2]
[314851234,1708593070601,-2113.57,0.0003589,2]
[314851235,1708593070610,-15830.84,0.0003589,2]
[314851236,1708593070619,-533.77,0.0003589,2]
[314851237,1708593070628,-502.65,0.0003589,2]
[314851238,1708593070637,-500.0,0.0003589,2]
[314851239,1708593070646,-500.0,0.0003589,2]
[314851240,1708593070655,-592.56,0.0003589,2]
[314851241,1708593070664,-502.98357643,0.0003589,2]
[314851242,1708593070673,-941.85,0.0003589,2]
[314851243,1708593070682,-500.0,0.0003589,2]
[314851244,1708593070691,-500.0,0.0003589,2]
[314851245,1708593070700,-500.0,0.0003589,2]
[314851246,1708593070709,-884.33,0.0003589,2]
[314851247,1708593070718,-500.0,0.0003589,2]
[314851248,1708593070727,-500.0,0.0003589,2]
[314851249,1708593070736,-5492.11,0.0003589,2]
[314851250,1708593070746,-14930.42,0.0003589,2]
[314851251,1708593070755,-11177.75,0.0003589,2]
[314851252,1708593070765,-824.03,0.0003589,2]
[314851253,1708593070774,-500.0,0.0003589,2]
[314851254,1708593070784,-500.0,0.0003589,2]
[314851255,1708593070793,-1032.06,0.0003589,2]
[314851256,1708593070802,-500.0,0.0003589,2]
[314851257,1708593070812,-500.0,0.0003589,2]
[314851258,1708593070821,-510.54587469,0.0003589,2]
[314851259,1708593070830,-613.2,0.0003589,2]
[314851260,1708593070839,-690.79,0.0003589,2]
[314851261,1708593070848,-500.0,0.0003589,2]
[314851262,1708593070858,-2892.97,0.0003589,2]
[314851263,1708593070867,-500.0,0.0003589,2]
[314851264,1708593070876,-1585.36,0.0003589,2]
[314851265,1708593070885,-500.0,0.0003589,2]
[314851266,1708593070894,-500.0,0.0003589,2]
[314851267,1708593070903,-500.0,0.0003589,2]
[314851268,1708593070912,-500.0,0.0003589,2]
[314851269,1708593070922,-500.0,0.0003589,2]
[314851270,1708593070931,-2781.59,0.0003589,2]
[314851271,1708593070940,-500.0,0.0003589,2]
[314851272,1708593070949,-2406.03,0.0003589,2]
[314851273,1708593070958,-1071.36,0.0003589,2]
[314851274,1708593070967,-614.88,0.0003589,2]
[314851275,1708593070977,-500.0,0.0003589,2]
[314851276,1708593070987,-500.0,0.0003589,2]
[314851277,1708593070996,-500.0,0.0003589,2]
[314851278,1708593071005,-848.21,0.0003589,2]
[314851279,1708593071014,-500.0,0.0003589,2]
[314851280,1708593071024,-769.89,0.0003589,2]
[314851281,1708593071033,-1684.67,0.0003589,2]
[314851282,1708593071043,-500.0,0.0003589,2]
[314851283,1708593071052,-500.0,0.0003589,2]
[314851284,1708593071062,-500.0,0.0003589,2]
[314851285,1708593071071,-500.0,0.0003589,2]
[314851286,1708593071082,-4350.9,0.0003589,2]
[314851287,1708593071093,-863.2,0.0003589,2]
[314851288,1708593071103,-1688.72,0.0003589,2]
[314851289,1708593071112,-2340.12,0.0003589,2]
[314851290,1708593071122,-500.0,0.0003589,2]
[314851291,1708593071132,-500.0,0.0003589,2]
[314851292,1708593071141,-588.44,0.0003589,2]
[314851293,1708593071150,-754.24,0.0003589,2]
[314851294,1708593071160,-2025.77,0.0003589,2]
[314851295,1708593071169,-500.0,0.0003589,2]
[314851296,1708593071178,-1613.45,0.0003589,2]
[314851297,1708593071187,-712.15,0.0003589,2]
[314851298,1708593071196,-1053.87,0.0003589,2]
[314851299,1708593071206,-553.72,0.0003589,2]
[314851300,1708593071215,-500.0,0.0003589,2]
[314851301,1708593071224,-500.0,0.0003589,2]
[314851302,1708593071238,-500.0,0.0003589,2]
[314851303,1708593071252,-848.41,0.0003589,2]
[314851304,1708593071268,-500.0,0.0003589,2]
[314851305,1708593071280,-500.0,0.0003589,2]
[314851306,1708593071291,-503.54490492,0.0003589,2]
[314851307,1708593071304,-606.52,0.0003589,2]
[314851308,1708593071317,-500.0,0.0003589,2]
[314851309,1708593071331,-516.86,0.0003589,2]
[314851310,1708593071345,-500.0,0.0003589,2]
[314851311,1708593071359,-4390.55,0.0003589,2]
[314851312,1708593071370,-903.28,0.0003589,2]
[314851313,1708593071383,-500.0,0.0003589,2]
[314851314,1708593071396,-713.51,0.0003589,2]
[314851315,1708593071409,-2718.57,0.0003589,2]
[314851316,1708593071423,-500.0,0.0003589,2]
[314851317,1708593071437,-500.0,0.0003589,2]
[314851318,1708593071449,-982.14,0.0003589,2]
[314851319,1708593071460,-1561.55,0.0003589,2]
[314851320,1708593071475,-9548.96,0.0003589,2]
[314851321,1708593071490,-500.0,0.0003589,2]
[314851322,1708593071504,-500.0,0.0003589,2]
[314851323,1708593071518,-1779.55,0.0003589,2]
[314851324,1708593071531,-1704.79,0.0003589,2]
[314851325,1708593071545,-500.0,0.0003589,2]
[314851326,1708593071558,-817.08,0.0003589,2]
[314851327,1708593071573,-705.7,0.0003589,2]
[314851328,1708593071588,-3390.72,0.0003589,2]
[314851329,1708593071603,-786.08,0.0003589,2]
[314851330,1708593071615,-7241.68844005,0.0003589,2]
[314851331,1708593072515,-1215.86155995,0.0003589,2]
[314851332,1708593072526,-500.0,0.0003589,2]
[314851333,1708593072537,-1785.96,0.0003589,2]
[314851334,1708593072549,-500.0,0.0003589,2]
[314851335,1708593072561,-1767.22,0.0003589,2]
[314851336,1708593072572,-500.0,0.0003589,2]
[314851337,1708593072583,-500.0,0.0003589,2]
[314851338,1708593072594,-1229.81,0.0003589,2]
[314851339,1708593072606,-3294.85,0.0003589,2]
[314851340,1708593072617,-500.0,0.0003589,2]
[314851341,1708593072629,-500.0,0.0003589,2]
[314851342,1708593072640,-500.0,0.0003589,2]
[314851343,1708593072652,-500.0,0.0003589,2]
[314851344,1708593072664,-500.0,0.0003589,2]
[314851345,1708593072675,-564.11,0.0003589,2]
[314851346,1708593072686,-500.0,0.0003589,2]
[314851347,1708593072697,-1709.19,0.0003589,2]
[314851348,1708593072708,-622.96088857,0.0003589,2]
[314851349,1708593072720,-607.6215196,0.0003589,2]
[314851350,1708593072731,-500.0,0.0003589,2]
[314851351,1708593072743,-500.0,0.0003589,2]
[314851352,1708593072754,-703.41,0.0003589,2]
[314851353,1708593072766,-580.84,0.0003589,2]
[314851354,1708593072777,-1979.11,0.0003589,2]
[314851355,1708593072789,-929.35,0.0003589,2]
[314851356,1708593072801,-500.0,0.0003589,2]
[314851357,1708593072812,-542.95,0.0003589,2]
[314851358,1708593072824,-9351.8,0.0003589,2]
[314851359,1708593072836,-684.03,0.0003589,2]
[314851360,1708593072847,-500.0,0.0003589,2]
[314851361,1708593072859,-2399.88,0.0003589,2]
[314851362,1708593072870,-587.21,0.0003589,2]
[314851363,1708593072881,-500.0,0.0003589,2]
[314851364,1708593072893,-1262.26,0.0003589,2]
[314851365,1708593072905,-578.45,0.0003589,2]
[314851366,1708593072916,-500.0,0.0003589,2]
[314851367,1708593072928,-500.0,0.0003589,2]
[314851368,1708593072939,-500.0,0.0003589,2]
[314851369,1708593072951,-921.9,0.0003589,2]
[314851370,1708593072962,-500.0,0.0003589,2]
[314851371,1708593072974,-1352.43,0.0003589,2]
[314851372,1708593072985,-1120.81,0.0003589,2]
[314851373,1708593072996,-500.0,0.0003589,2]
[314851374,1708593073008,-711.23,0.0003589,2]
[314851375,1708593073019,-500.0,0.0003589,2]
[314851376,1708593073031,-1437.6,0.0003589,2]
[314851377,1708593073042,-4042.37,0.0003589,2]
[314851378,1708593073054,-4026.07,0.0003589,2]
[314851379,1708593073066,-500.0,0.0003589,2]
[314851380,1708593073077,-882.88,0.0003589,2]
[314851381,1708593073092,-2127.11,0.0003589,2]
[314851382,1708593073105,-500.0,0.0003589,2]
[314851383,1708593073118,-251.97265686,0.0003589,2]
[314851384,1708593073132,-500.0,0.0003589,2]
[314851385,1708593073143,-500.0,0.0003589,2]
[314851386,1708593073155,-500.0,0.0003589,2]
[314851387,1708593073168,-500.0,0.0003589,2]
[314851388,1708593073179,-500.0,0.0003589,2]
[314851389,1708593073190,-500.0,0.0003589,2]
[314851390,1708593073202,-500.0,0.0003589,2]
[314851391,1708593073213,-500.0,0.0003589,2]
[314851392,1708593073224,-510.47749136,0.0003589,2]
[314851393,1708593073237,-1550.03,0.0003589,2]
[314851394,1708593073249,-500.0,0.0003589,2]
[314851395,1708593073261,-4885.69,0.0003589,2]
[314851396,1708593073272,-13679.33,0.0003589,2]
[314851397,1708593073284,-500.0,0.0003589,2]
[314851398,1708593073295,-3398.1,0.0003589,2]
[314851399,1708593073307,-3555.58,0.0003589,2]
[314851400,1708593073319,-500.0,0.0003589,2]
[314851401,1708593073331,-500.0,0.0003589,2]
[314851402,1708593073344,-500.0,0.0003589,2]
[314851403,1708593073354,-534.49,0.0003589,2]
[314851404,1708593073363,-793.76,0.0003589,2]
[314851405,1708593073373,-500.0,0.0003589,2]
[314851406,1708593073383,-500.0,0.0003589,2]
[314851407,1708593073392,-1979.68,0.0003589,2]
[314851408,1708593073402,-500.0,0.0003589,2]
[314851409,1708593073412,-1067.71,0.0003589,2]
[314851410,1708593073421,-590.77,0.0003589,2]
[314851411,1708593073431,-507.67888217,0.0003589,2]
[314851412,1708593073440,-500.0,0.0003589,2]
[314851413,1708593073450,-575.54,0.0003589,2]
[314851414,1708593073459,-1199.68,0.0003589,2]
[314851415,1708593073469,-537.94,0.0003589,2]
[314851416,1708593073478,-500.0,0.0003589,2]
[314851417,1708593073489,-500.0,0.0003589,2]
[314851418,1708593073498,-565.51,0.0003589,2]
[314851419,1708593073508,-500.0,0.0003589,2]
[314851420,1708593073518,-500.0,0.0003589,2]
[314851421,1708593073528,-2097.3,0.0003589,2]
[314851422,1708593073537,-1514.6,0.0003589,2]
[314851423,1708593073546,-776.62,0.0003589,2]
[314851424,1708593073556,-1400.26,0.0003589,2]
[314851425,1708593073565,-2079.11,0.0003589,2]
[314851426,1708593073574,-731.5,0.0003589,2]
[314851427,1708593073584,-1559.11,0.0003589,2]
[314851428,1708593073593,-740.86,0.0003589,2]
[314851429,1708593073603,-1059.27,0.0003589,2]
[314851430,1708593073612,-500.0,0.0003589,2]
[314851431,1708593073623,-1035.98,0.0003589,2]
[314851432,1708593073632,-500.0,0.0003589,2]
[314851433,1708593073642,-500.0,0.0003589,2]
[314851434,1708593073651,-500.0,0.0003589,2]
[314851435,1708593073660,-500.0,0.0003589,2]
[314851436,1708593073670,-1392.73,0.0003589,2]
[314851437,1708593073679,-663.14,0.0003589,2]
[314851438,1708593073689,-500.0,0.0003589,2]
[314851439,1708593073699,-1005.03,0.0003589,2]
[314851440,1708593073708,-500.0,0.0003589,2]
[314851441,1708593073718,-500.0,0.0003589,2]
[314851442,1708593073727,-1403.45,0.0003589,2]
[314851443,1708593073736,-2708.13,0.0003589,2]
[314851444,1708593073745,-1950.67,0.0003589,2]
[314851445,1708593073755,-500.0,0.0003589,2]
[314851446,1708593073764,-500.0,0.0003589,2]
[314851447,1708593073773,-1748.23,0.0003589,2]
[314851448,1708593073783,-1121.93,0.0003589,2]
[314851449,1708593073792,-1500.27,0.0003589,2]
[314851450,1708593073802,-20239.02,0.0003589,2]
[314851451,1708593073811,-500.0,0.0003589,2]
[314851452,1708593073821,-500.0,0.0003589,2]
[314851453,1708593073830,-1451.24,0.0003589,2]
[314851454,1708593073840,-500.0,0.0003589,2]
[314851455,1708593073850,-500.0,0.0003589,2]
[314851456,1708593073859,-1491.59,0.0003589,2]
[314851457,1708593073869,-5644.89,0.0003589,2]
[314851458,1708593073878,-1659.59,0.0003589,2]
[314851459,1708593073888,-1571.33,0.0003589,2]
[314851460,1708593073898,-1690.17,0.0003589,2]
[314851461,1708593073908,-500.0,0.0003589,2]
[314851462,1708593073918,-500.0,0.0003589,2]
[314851463,1708593073927,-1772.36,0.0003589,2]
[314851464,1708593073936,-500.0,0.0003589,2]
[314851465,1708593073946,-500.0,0.0003589,2]
[314851466,1708593073955,-500.0,0.0003589,2]
[314851467,1708593073965,-500.0,0.0003589,2]
[314851468,1708593073974,-2865.76,0.0003589,2]
[314851469,1708593073984,-500.0,0.0003589,2]
[314851470,1708593073994,-500.0,0.0003589,2]
[314851471,1708593074003,-856.64,0.0003589,2]
[314851472,1708593074012,-1413.19,0.0003589,2]
[314851473,1708593074021,-549.54847003,0.0003589,2]
[314851474,1708593074031,-3207.16,0.0003589,2]
[314851475,1708593074040,-882.84,0.0003589,2]
[314851476,1708593074050,-488.3851802,0.0003589,2]
[314851477,1708593074059,-4083.84,0.0003589,2]
[314851478,1708593074069,-1693.16,0.0003589,2]
[314851479,1708593074080,-500.0,0.0003589,2]
[314851480,1708593074095,-500.0,0.0003589,2]
[314851481,1708593074104,-7417.29,0.0003589,2]
[314851482,1708593074115,-500.0,0.0003589,2]
[314851483,1708593074125,-500.0,0.0003589,2]
[314851484,1708593074135,-1664.21,0.0003589,2]
[314851485,1708593074143,-1728.16,0.0003589,2]
[314851486,1708593074153,-500.0,0.0003589,2]
[314851487,1708593074162,-508.13913215,0.0003589,2]
[314851488,1708593074173,-500.0,0.0003589,2]
[314851489,1708593074183,-3657.48,0.0003589,2]
[314851490,1708593074192,-500.0,0.0003589,2]
[314851491,1708593074850,-500.0,0.0003589,2]
[314851492,1708593074872,-2462.02,0.0003589,2]
[314851493,1708593074895,-3693.03,0.0003589,2]
[314851494,1708593074920,-4104.94,0.0003589,2]
[314851495,1708593074940,-500.0,0.0003589,2]
[314851496,1708593074954,-208.86482885,0.0003589,2]
[314851497,1708593074963,-500.0,0.0003589,2]
[314851498,1708593074972,-500.0,0.0003589,2]
[314851499,1708593074981,-500.0,0.0003589,2]
[314851500,1708593074993,-4009.31,0.0003589,2]
[314851501,1708593075002,-944.93,0.0003589,2]
[314851502,1708593075011,-500.0,0.0003589,2]
[314851503,1708593075021,-576.31,0.0003589,2]
[314851504,1708593075031,-500.0,0.0003589,2]
[314851505,1708593075040,-890.48,0.0003589,2]
[314851506,1708593075049,-569.68,0.0003589,2]
[314851507,1708593075059,-500.0,0.0003589,2]
[314851508,1708593075068,-500.0,0.0003589,2]
[314851509,1708593075078,-1728.03,0.0003589,2]
[314851510,1708593075090,-4790.67,0.0003589,2]
[314851511,1708593075102,-1212.96,0.0003589,2]
[314851512,1708593075111,-2566.88,0.0003589,2]
[314851513,1708593075120,-500.0,0.0003589,2]
[314851514,1708593075130,-500.0,0.0003589,2]
[314851515,1708593075139,-1588.61,0.0003589,2]
[314851516,1708593075148,-3142.2,0.0003589,2]
[314851517,1708593075157,-500.0,0.0003589,2]
[314851518,1708593075167,-500.0,0.0003589,2]
[314851519,1708593075176,-500.0,0.0003589,2]
[314851520,1708593075185,-500.0,0.0003589,2]
[314851521,1708593075195,-4628.88,0.0003589,2]
[314851522,1708593075203,-1401.8,0.0003589,2]
[314851523,1708593075212,-500.0,0.0003589,2]
[314851524,1708593075221,-880.95843155,0.0003589,2]
[314851525,1708593075238,-1152.74945906,0.0003589,2]
[314851526,1708593075261,-898.55819696,0.0003589,2]
[314851527,1708593075273,-2815.90391243,0.0003589,2]
[314851528,1708593075282,-500.0,0.0003589,2]
[314851529,1708593075291,-616.89,0.0003589,2]
[314851530,1708593075300,-1753.59,0.0003589,2]
[314851531,1708593075308,-332.70398774,0.0003589,2]
[314851532,1708593075320,-167.29601226,0.0003589,2]
[314851533,1708593075330,-500.0,0.0003589,2]
[314851534,1708593075339,-1129.91,0.0003589,2]
[314851535,1708593075348,-500.0,0.0003589,2]
[314851536,1708593075358,-372.49950308,0.0003589,2]
[314851537,1708593075388,-174.92049692,0.0003589,2]
[314851538,1708593075397,-1148.91427782,0.0003589,2]
[314851539,1708593075409,-275.52572218,0.0003589,2]
[314851540,1708593075418,-761.3785363,0.0003589,2]
[314851541,1708593075429,-6778.9914637,0.0003589,2]
[314851542,1708593075438,-500.0,0.0003589,2]
[314851543,1708593075448,-1367.89,0.0003589,2]
[314851544,1708593075458,-554.86,0.0003589,2]
[314851545,1708593075468,-341.0,0.0003589,2]
[314851546,1708593075479,-300.0,0.00035892,2]
[314851547,1708593075489,-178.046124,0.00035899,25]
[314851548,1708593075499,-234.56,0.000359,2]
[314851549,1708593075509,-4623.46226063,0.000359,2]
[314851550,1708593075522,-11574.55795836,0.000359,2]
[314851551,1708593075961,-150.0,0.00034216,2]
[314851552,1708593075971,-150.0,0.00034239,2]
[314851553,1708593075980,-170.0,0.00034393,2]
[314851554,1708593075991,-1022.8733227,0.000349,2]
[314851555,1708593076003,-2464.06232056,0.000349,2]
[314851556,1708593076013,-150.0,0.00034964,2]
[314851557,1708593076022,-150.0,0.00035586,2]
[314851558,1708593076032,-150.0,0.000356,2]
[314851559,1708593076041,-68.43038047,0.00035616,2]
[314851560,1708593076065,-431.56961953,0.00035616,2]
[314851561,1708593076074,-69.24436398,0.00035616,2]
[314851562,1708593076101,-431.33563602,0.00035616,2]
[314851563,1708593076111,-150.0,0.00035707,2]
[314851564,1708593076120,-17203.9064582,0.000359,2]
[314851565,1708593076149,-150.0,0.0003472,2]
[314851566,1708593076159,-150.0,0.00035836,2]
[314851567,1708593076171,-166.632,0.000359,2]
[314851568,1708593076184,-1404.2072,0.000359,2]
[314851569,1708593076377,-4330.35428494,0.00035616,2]
[314851570,1708593076389,-3934.59571506,0.00035616,2]
[314851571,1708593076399,-342.24626345,0.0003589,2]
[314851572,1708593076876,-150.0,0.00034,2]
[314851573,1708593076887,-150.0,0.00034034,2]
[314851574,1708593076896,-150.0,0.00034259,2]
[314851575,1708593076906,-150.0,0.00034354,2]
[314851576,1708593076918,-150.0,0.00034408,2]
[314851577,1708593076927,-150.0,0.00034484,2]
[314851578,1708593076937,-150.0,0.00034595,2]
[314851579,1708593076946,-150.0,0.00034648,2]
[314851580,1708593076955,-150.0,0.0003484,2]
[314851581,1708593076965,-150.0,0.00034975,2]
[314851582,1708593076975,-150.0,0.00035006,2]
[314851583,1708593076984,-219.65276749,0.00035105,2]
[314851584,1708593076995,-150.0,0.00035181,2]
[314851585,1708593077004,-150.0,0.00035302,2]
[314851586,1708593077013,-150.0,0.00035404,2]
[314851587,1708593077022,-563.2979334,0.00035519,2]
[314851588,1708593077032,-150.0,0.00035637,2]
[314851589,1708593077042,-150.0,0.00035662,2]